[Event "Titled Tuesday Blitz January 25 2022"]
[White "Tanenbaum, Zachary"]
[Black "Maksimovic, Bojan"]
[WhiteFideId "2060850"]
[BlackFideId "14408120"]
[WhiteElo "2168"]
[BlackElo "2450"]
[Result "1-0"]
[Round "10"]
[TimeControl "180+1"]
[Date "2022.01.26"]
[WhiteClock "0:00:18"]
[BlackClock "0:00:18"]

1. e4 {[%clk 0:03:00]}  g6 {[%clk 0:03:00]} 2. d4 {[%clk 0:03:00]}  Bg7 {[%clk 0:03:01]} 3. Nc3 {[%clk 0:03:01]}  d6 {[%clk 0:03:02]} 4. Bg5 {[%clk 0:03:01]}  a6 {[%clk 0:03:02]} 5. Qd2 {[%clk 0:03:01]}  b5 {[%clk 0:03:03]} 6. O-O-O {[%clk 0:03:02]}  Bb7 {[%clk 0:03:03]} 7. Nf3 {[%clk 0:03:01]}  Nd7 {[%clk 0:03:03]} 8. Bd3 {[%clk 0:03:00]}  h6 {[%clk 0:03:03]} 9. Bh4 {[%clk 0:03:00]}  c5 {[%clk 0:03:02]} 10. dxc5 {[%clk 0:03:00]}  Nxc5 {[%clk 0:03:03]} 11. Rhe1 {[%clk 0:02:59]}  Rc8 {[%clk 0:02:56]} 12. Kb1 {[%clk 0:02:53]}  Nxd3 {[%clk 0:02:51]} 13. Qxd3 {[%clk 0:02:49]}  Qc7 {[%clk 0:02:48]} 14. Nd5 {[%clk 0:02:39]}  Qc4 {[%clk 0:02:42]} 15. e5 {[%clk 0:01:53]}  dxe5 {[%clk 0:01:54]} 16. Nxe5 {[%clk 0:01:52]}  Qxd3 {[%clk 0:01:49]} 17. Rxd3 {[%clk 0:01:52]}  g5 {[%clk 0:01:49]} 18. Bg3 {[%clk 0:01:49]}  Nf6 {[%clk 0:01:42]} 19. Nxe7 {[%clk 0:01:45]}  Ra8 {[%clk 0:01:26]} 20. Nf3 {[%clk 0:00:34]}  Ne4 {[%clk 0:01:22]} 21. Nd5 {[%clk 0:00:31]}  f5 {[%clk 0:00:31]} 22. Nc7+ {[%clk 0:00:31]}  Kf7 {[%clk 0:00:32]} 23. Rd7+ {[%clk 0:00:31]}  Kg6 {[%clk 0:00:31]} 24. Nxa8 {[%clk 0:00:29]}  Bxa8 {[%clk 0:00:32]} 25. Be5 {[%clk 0:00:27]}  Bxe5 {[%clk 0:00:25]} 26. Nxe5+ {[%clk 0:00:28]}  Kf6 {[%clk 0:00:26]} 27. Nd3 {[%clk 0:00:25]}  g4 {[%clk 0:00:26]} 28. f3 {[%clk 0:00:23]}  gxf3 {[%clk 0:00:26]} 29. gxf3 {[%clk 0:00:24]}  Nd2+ {[%clk 0:00:27]} 30. Kc1 {[%clk 0:00:25]}  Nxf3 {[%clk 0:00:27]} 31. Ree7 {[%clk 0:00:24]}  Nxh2 {[%clk 0:00:27]} 32. Rg7 {[%clk 0:00:16]}  Ng4 {[%clk 0:00:17]} 33. Rdf7+ {[%clk 0:00:16]}  Ke6 {[%clk 0:00:17]} 34. Nf4+ {[%clk 0:00:17]}  Ke5 {[%clk 0:00:18]} 35. Ng6+ {[%clk 0:00:18]}  Ke4 {[%clk 0:00:18]} 36. Nxh8 {[%clk 0:00:18]} 1-0


[Site "https://www.chess.com"]

[Event "Titled Tuesday Blitz January 25 2022"]
[White "Tregubov, Pavel V."]
[Black "Pranav, V"]
[WhiteFideId "4115341"]
[BlackFideId "25060783"]
[WhiteElo "2341"]
[BlackElo "2349"]
[Result "1-0"]
[Round "10"]
[TimeControl "180+1"]
[Date "2022.01.26"]
[WhiteClock "0:00:41"]
[BlackClock "0:00:01"]

1. e4 {[%clk 0:03:00]}  e5 {[%clk 0:02:58]} 2. Nf3 {[%clk 0:03:01]}  Nc6 {[%clk 0:02:58]} 3. Bb5 {[%clk 0:03:01]}  a6 {[%clk 0:02:58]} 4. Ba4 {[%clk 0:03:01]}  d6 {[%clk 0:02:59]} 5. d4 {[%clk 0:03:00]}  exd4 {[%clk 0:02:58]} 6. Nxd4 {[%clk 0:02:55]}  Bd7 {[%clk 0:02:58]} 7. Bxc6 {[%clk 0:02:54]}  bxc6 {[%clk 0:02:57]} 8. O-O {[%clk 0:02:49]}  Nf6 {[%clk 0:02:54]} 9. Qf3 {[%clk 0:02:49]}  Ng4 {[%clk 0:02:34]} 10. h3 {[%clk 0:02:44]}  Ne5 {[%clk 0:02:21]} 11. Qg3 {[%clk 0:02:44]}  Ng6 {[%clk 0:02:14]} 12. Nf5 {[%clk 0:02:40]}  Qf6 {[%clk 0:02:00]} 13. Nc3 {[%clk 0:02:32]}  Bxf5 {[%clk 0:01:56]} 14. Bg5 {[%clk 0:02:32]}  Qe5 {[%clk 0:01:54]} 15. exf5 {[%clk 0:02:33]}  Qxg3 {[%clk 0:01:55]} 16. fxg3 {[%clk 0:02:33]}  Ne5 {[%clk 0:01:56]} 17. f6 {[%clk 0:02:29]}  h6 {[%clk 0:01:54]} 18. Be3 {[%clk 0:02:13]}  gxf6 {[%clk 0:01:50]} 19. Ne4 {[%clk 0:02:13]}  Bg7 {[%clk 0:01:47]} 20. Nxf6+ {[%clk 0:02:13]}  Bxf6 {[%clk 0:01:48]} 21. Rxf6 {[%clk 0:02:13]}  Ke7 {[%clk 0:01:47]} 22. Rxh6 {[%clk 0:02:10]}  Rhg8 {[%clk 0:01:40]} 23. g4 {[%clk 0:02:05]}  Rab8 {[%clk 0:01:30]} 24. b3 {[%clk 0:02:05]}  Rb4 {[%clk 0:01:27]} 25. c4 {[%clk 0:01:58]}  a5 {[%clk 0:01:25]} 26. Bd2 {[%clk 0:01:58]}  Rb7 {[%clk 0:01:19]} 27. Bxa5 {[%clk 0:01:58]}  d5 {[%clk 0:00:59]} 28. Bc3 {[%clk 0:01:55]}  Nd3 {[%clk 0:00:56]} 29. Rd1 {[%clk 0:01:46]}  Nf4 {[%clk 0:00:55]} 30. Re1+ {[%clk 0:01:42]}  Kf8 {[%clk 0:00:47]} 31. Rxc6 {[%clk 0:01:33]}  dxc4 {[%clk 0:00:47]} 32. Rxc4 {[%clk 0:01:32]}  Ne6 {[%clk 0:00:47]} 33. Ra4 {[%clk 0:01:26]}  Ke7 {[%clk 0:00:45]} 34. Rf4 {[%clk 0:01:21]}  Ra8 {[%clk 0:00:44]} 35. Re2 {[%clk 0:01:19]}  Rxa2 {[%clk 0:00:43]} 36. Rxf7+ {[%clk 0:01:05]}  Kxf7 {[%clk 0:00:41]} 37. Rxa2 {[%clk 0:01:06]}  Rxb3 {[%clk 0:00:42]} 38. Be5 {[%clk 0:01:04]}  c5 {[%clk 0:00:40]} 39. Ra7+ {[%clk 0:01:01]}  Kg6 {[%clk 0:00:37]} 40. Re7 {[%clk 0:01:01]}  Ng5 {[%clk 0:00:32]} 41. h4 {[%clk 0:00:54]}  Ne4 {[%clk 0:00:32]} 42. h5+ {[%clk 0:00:48]}  Kg5 {[%clk 0:00:30]} 43. Rg7+ {[%clk 0:00:46]}  Kh4 {[%clk 0:00:19]} 44. h6 {[%clk 0:00:46]}  Rb1+ {[%clk 0:00:02]} 45. Kh2 {[%clk 0:00:46]}  Ng5 {[%clk 0:00:01]} 46. Bf6 {[%clk 0:00:41]} 1-0


[Site "https://www.chess.com"]

[Event "Titled Tuesday Blitz January 25 2022"]
[White "Visakh N R"]
[Black "Artemenko, Oleg"]
[WhiteFideId "25012223"]
[BlackFideId "14201798"]
[WhiteElo "2454"]
[BlackElo "2287"]
[Result "1/2-1/2"]
[Round "10"]
[TimeControl "180+1"]
[Date "2022.01.26"]
[WhiteClock "0:01:08"]
[BlackClock "0:01:06"]

1. e4 {[%clk 0:03:00]}  e6 {[%clk 0:02:59]} 2. d4 {[%clk 0:03:00]}  d5 {[%clk 0:02:59]} 3. Nd2 {[%clk 0:03:01]}  c5 {[%clk 0:02:59]} 4. exd5 {[%clk 0:02:59]}  Qxd5 {[%clk 0:03:00]} 5. Ngf3 {[%clk 0:02:57]}  cxd4 {[%clk 0:02:59]} 6. Bc4 {[%clk 0:02:57]}  Qd7 {[%clk 0:03:00]} 7. O-O {[%clk 0:02:57]}  Nc6 {[%clk 0:03:00]} 8. Nb3 {[%clk 0:02:57]}  Nf6 {[%clk 0:03:01]} 9. Nbxd4 {[%clk 0:02:57]}  Nxd4 {[%clk 0:03:02]} 10. Nxd4 {[%clk 0:02:57]}  a6 {[%clk 0:03:02]} 11. a4 {[%clk 0:02:57]}  Qc7 {[%clk 0:03:02]} 12. Qe2 {[%clk 0:02:57]}  Bd6 {[%clk 0:03:01]} 13. Nf5 {[%clk 0:02:56]}  Bxh2+ {[%clk 0:03:00]} 14. Kh1 {[%clk 0:02:57]}  O-O {[%clk 0:03:00]} 15. Nh4 {[%clk 0:02:46]}  Bf4 {[%clk 0:02:58]} 16. g3 {[%clk 0:02:45]}  Bxc1 {[%clk 0:02:57]} 17. Raxc1 {[%clk 0:02:46]}  e5 {[%clk 0:02:56]} 18. Bb3 {[%clk 0:02:42]}  Bd7 {[%clk 0:02:41]} 19. Rfe1 {[%clk 0:02:39]}  Rfe8 {[%clk 0:02:37]} 20. Kg1 {[%clk 0:02:37]}  Rad8 {[%clk 0:02:35]} 21. Rcd1 {[%clk 0:02:35]}  e4 {[%clk 0:02:29]} 22. Rd4 {[%clk 0:02:16]}  Bg4 {[%clk 0:02:28]} 23. Qc4 {[%clk 0:02:15]}  Qxc4 {[%clk 0:02:27]} 24. Rxc4 {[%clk 0:02:16]}  g5 {[%clk 0:02:27]} 25. Ng2 {[%clk 0:02:14]}  Be6 {[%clk 0:02:27]} 26. Rb4 {[%clk 0:02:12]}  Bxb3 {[%clk 0:02:26]} 27. Rxb3 {[%clk 0:02:12]}  Rd2 {[%clk 0:02:26]} 28. Rxb7 {[%clk 0:02:09]}  Ng4 {[%clk 0:02:18]} 29. Rf1 {[%clk 0:01:54]}  Rxc2 {[%clk 0:02:11]} 30. Ne3 {[%clk 0:01:53]}  Nxe3 {[%clk 0:02:11]} 31. fxe3 {[%clk 0:01:54]}  Rd8 {[%clk 0:02:04]} 32. Rfxf7 {[%clk 0:01:50]}  Rd1+ {[%clk 0:02:04]} 33. Rf1 {[%clk 0:01:50]}  Rdd2 {[%clk 0:02:05]} 34. Rff7 {[%clk 0:01:45]}  Rxb2 {[%clk 0:01:36]} 35. Rg7+ {[%clk 0:01:44]}  Kf8 {[%clk 0:01:36]} 36. Rgf7+ {[%clk 0:01:44]}  Kg8 {[%clk 0:01:34]} 37. Rg7+ {[%clk 0:01:43]}  Kf8 {[%clk 0:01:34]} 38. Rgf7+ {[%clk 0:01:40]}  Ke8 {[%clk 0:01:27]} 39. Rxb2 {[%clk 0:01:21]}  Rxb2 {[%clk 0:01:28]} 40. Rxh7 {[%clk 0:01:22]}  Ra2 {[%clk 0:01:19]} 41. Rg7 {[%clk 0:01:17]}  Rxa4 {[%clk 0:01:18]} 42. Rxg5 {[%clk 0:01:17]}  Kf7 {[%clk 0:01:18]} 43. Kg2 {[%clk 0:01:17]}  Kf6 {[%clk 0:01:18]} 44. Rh5 {[%clk 0:01:11]}  Ra2+ {[%clk 0:01:15]} 45. Kh3 {[%clk 0:01:10]}  Re2 {[%clk 0:01:15]} 46. Rh6+ {[%clk 0:01:10]}  Kg5 {[%clk 0:01:15]} 47. Rxa6 {[%clk 0:01:10]}  Rxe3 {[%clk 0:01:15]} 48. Ra5+ {[%clk 0:01:11]}  Kf6 {[%clk 0:01:14]} 49. Kg4 {[%clk 0:01:11]}  Re1 {[%clk 0:01:15]} 50. Kf4 {[%clk 0:01:09]}  e3 {[%clk 0:01:14]} 51. Ra6+ {[%clk 0:01:09]}  Kg7 {[%clk 0:01:13]} 52. Re6 {[%clk 0:01:09]}  e2 {[%clk 0:01:10]} 53. Kg5 {[%clk 0:01:09]}  Rg1 {[%clk 0:01:08]} 54. Rxe2 {[%clk 0:01:08]}  Rxg3+ {[%clk 0:01:08]} 55. Kf4 {[%clk 0:01:09]}  Ra3 {[%clk 0:01:08]} 56. Re3 {[%clk 0:01:07]}  Rxe3 {[%clk 0:01:06]} 57. Kxe3 {[%clk 0:01:08]} 1/2-1/2


[Site "https://www.chess.com"]

[Event "Titled Tuesday Blitz January 25 2022"]
[White "Weetik, Vjacheslav"]
[Black "Janaszak, Dawid"]
[WhiteFideId "4153472"]
[BlackFideId "1119206"]
[WhiteElo "2469"]
[BlackElo "2199"]
[Result "1-0"]
[Round "10"]
[TimeControl "180+1"]
[Date "2022.01.26"]
[WhiteClock "0:00:04"]
[BlackClock "0:00:01"]

1. g4 {[%clk 0:02:59]}  e5 {[%clk 0:02:59]} 2. d4 {[%clk 0:02:50]}  exd4 {[%clk 0:02:58]} 3. Qxd4 {[%clk 0:02:50]}  Nc6 {[%clk 0:02:56]} 4. Qa4 {[%clk 0:02:49]}  Bc5 {[%clk 0:02:52]} 5. Nc3 {[%clk 0:02:42]}  d5 {[%clk 0:02:40]} 6. Bf4 {[%clk 0:02:37]}  Ne7 {[%clk 0:02:36]} 7. Nf3 {[%clk 0:02:16]}  O-O {[%clk 0:02:35]} 8. O-O-O {[%clk 0:02:00]}  Bd7 {[%clk 0:02:26]} 9. Nxd5 {[%clk 0:01:51]}  Nd4 {[%clk 0:02:05]} 10. Qc4 {[%clk 0:01:17]}  Nxd5 {[%clk 0:01:38]} 11. Qxc5 {[%clk 0:01:10]}  Nxf3 {[%clk 0:01:07]} 12. Qxd5 {[%clk 0:00:53]}  Bc6 {[%clk 0:00:54]} 13. Qxc6 {[%clk 0:00:35]}  Qxd1+ {[%clk 0:00:35]} 14. Kxd1 {[%clk 0:00:35]}  Rad8+ {[%clk 0:00:32]} 15. Qd6 {[%clk 0:00:24]}  cxd6 {[%clk 0:00:21]} 16. exf3 {[%clk 0:00:25]}  d5 {[%clk 0:00:22]} 17. Bd3 {[%clk 0:00:24]}  Rfe8 {[%clk 0:00:22]} 18. Kd2 {[%clk 0:00:23]}  Re6 {[%clk 0:00:22]} 19. Bg3 {[%clk 0:00:19]}  Rde8 {[%clk 0:00:22]} 20. f4 {[%clk 0:00:19]}  Rb6 {[%clk 0:00:21]} 21. b3 {[%clk 0:00:19]}  g6 {[%clk 0:00:20]} 22. h4 {[%clk 0:00:19]}  a5 {[%clk 0:00:19]} 23. a4 {[%clk 0:00:18]}  Rb4 {[%clk 0:00:19]} 24. h5 {[%clk 0:00:19]}  Kg7 {[%clk 0:00:19]} 25. f5 {[%clk 0:00:18]}  Rxg4 {[%clk 0:00:17]} 26. hxg6 {[%clk 0:00:17]}  fxg6 {[%clk 0:00:18]} 27. fxg6 {[%clk 0:00:10]}  hxg6 {[%clk 0:00:19]} 28. Rd1 {[%clk 0:00:07]}  Rg5 {[%clk 0:00:15]} 29. Bf4 {[%clk 0:00:03]}  Rh5 {[%clk 0:00:14]} 30. Be3 {[%clk 0:00:04]}  Rh4 {[%clk 0:00:13]} 31. c3 {[%clk 0:00:03]}  Kf7 {[%clk 0:00:11]} 32. Rg1 {[%clk 0:00:04]}  Rg8 {[%clk 0:00:10]} 33. Bd4 {[%clk 0:00:04]}  g5 {[%clk 0:00:09]} 34. Rg3 {[%clk 0:00:04]}  g4 {[%clk 0:00:09]} 35. Be2 {[%clk 0:00:04]}  Ke6 {[%clk 0:00:07]} 36. Re3+ {[%clk 0:00:04]}  Kd7 {[%clk 0:00:07]} 37. Be5 {[%clk 0:00:04]}  Re8 {[%clk 0:00:06]} 38. Bg3 {[%clk 0:00:04]}  Rxe3 {[%clk 0:00:05]} 39. Kxe3 {[%clk 0:00:05]}  Rh1 {[%clk 0:00:03]} 40. Bxg4+ {[%clk 0:00:05]}  Kc6 {[%clk 0:00:04]} 41. Kd3 {[%clk 0:00:04]}  Rb1 {[%clk 0:00:02]} 42. Kc2 {[%clk 0:00:04]}  Re1 {[%clk 0:00:02]} 43. Bf3 {[%clk 0:00:04]}  Rf1 {[%clk 0:00:01]} 44. Be2 {[%clk 0:00:04]}  Re1 {[%clk 0:00:01]} 45. Bb5+ {[%clk 0:00:05]}  Kc5 {[%clk 0:00:01]} 46. Bf4 {[%clk 0:00:04]}  d4 {[%clk 0:00:02]} 47. cxd4+ {[%clk 0:00:04]}  Kxd4 {[%clk 0:00:02]} 48. Be3+ {[%clk 0:00:05]}  Ke5 {[%clk 0:00:02]} 49. Kd3 {[%clk 0:00:05]}  Rd1+ {[%clk 0:00:02]} 50. Ke2 {[%clk 0:00:04]}  Rb1 {[%clk 0:00:01]} 51. Bc4 {[%clk 0:00:04]}  Ke4 {[%clk 0:00:01]} 52. f3+ {[%clk 0:00:04]}  Ke5 {[%clk 0:00:02]} 53. Kd3 {[%clk 0:00:05]}  Rd1+ {[%clk 0:00:01]} 54. Kc2 {[%clk 0:00:04]} 1-0


[Site "https://www.chess.com"]

[Event "Titled Tuesday Blitz January 25 2022"]
[White "Willow, Jonah B"]
[Black "De Silva, L M S T"]
[WhiteFideId "438804"]
[BlackFideId "9953698"]
[WhiteElo "2261"]
[BlackElo "1631"]
[Result "1/2-1/2"]
[Round "10"]
[TimeControl "180+1"]
[Date "2022.01.26"]
[WhiteClock "0:00:36"]
[BlackClock "0:00:04"]

1. e4 {[%clk 0:03:00]}  e5 {[%clk 0:02:59]} 2. Nf3 {[%clk 0:03:00]}  Nc6 {[%clk 0:03:00]} 3. Nc3 {[%clk 0:03:01]}  Nf6 {[%clk 0:03:00]} 4. Bb5 {[%clk 0:03:01]}  Bb4 {[%clk 0:02:59]} 5. O-O {[%clk 0:03:01]}  O-O {[%clk 0:02:55]} 6. d3 {[%clk 0:03:02]}  Bxc3 {[%clk 0:02:55]} 7. bxc3 {[%clk 0:03:03]}  d6 {[%clk 0:02:55]} 8. Bg5 {[%clk 0:03:04]}  h6 {[%clk 0:02:56]} 9. Bh4 {[%clk 0:03:04]}  Qe7 {[%clk 0:02:56]} 10. Re1 {[%clk 0:03:02]}  Nb8 {[%clk 0:02:56]} 11. d4 {[%clk 0:02:59]}  c6 {[%clk 0:02:55]} 12. Bd3 {[%clk 0:02:58]}  Bg4 {[%clk 0:02:55]} 13. h3 {[%clk 0:02:58]}  Bh5 {[%clk 0:02:55]} 14. Rb1 {[%clk 0:02:57]}  b5 {[%clk 0:02:53]} 15. a4 {[%clk 0:02:55]}  a6 {[%clk 0:02:53]} 16. g4 {[%clk 0:02:50]}  Bg6 {[%clk 0:02:53]} 17. Qc1 {[%clk 0:02:51]}  Nbd7 {[%clk 0:02:52]} 18. Qa3 {[%clk 0:02:46]}  Qe6 {[%clk 0:02:45]} 19. Bg3 {[%clk 0:02:43]}  c5 {[%clk 0:02:36]} 20. d5 {[%clk 0:02:27]}  Qe8 {[%clk 0:02:28]} 21. c4 {[%clk 0:02:15]}  bxc4 {[%clk 0:02:27]} 22. Bxc4 {[%clk 0:02:07]}  Bxe4 {[%clk 0:02:26]} 23. Rbd1 {[%clk 0:01:57]}  Nb6 {[%clk 0:02:22]} 24. Nd2 {[%clk 0:01:36]}  Bxc2 {[%clk 0:02:17]} 25. Rc1 {[%clk 0:01:34]}  Qxa4 {[%clk 0:02:15]} 26. Qc3 {[%clk 0:01:32]}  Bg6 {[%clk 0:02:10]} 27. Ra1 {[%clk 0:01:31]}  Qd7 {[%clk 0:02:09]} 28. Qf3 {[%clk 0:01:23]}  e4 {[%clk 0:01:30]} 29. Qb3 {[%clk 0:01:21]}  Rfb8 {[%clk 0:01:27]} 30. Rxa6 {[%clk 0:01:17]}  Rxa6 {[%clk 0:01:20]} 31. Bxa6 {[%clk 0:01:17]}  Qa7 {[%clk 0:01:20]} 32. Bxd6 {[%clk 0:01:16]}  Rd8 {[%clk 0:01:14]} 33. Bxc5 {[%clk 0:01:16]}  Qxa6 {[%clk 0:01:14]} 34. Qxb6 {[%clk 0:01:14]}  Qc8 {[%clk 0:00:56]} 35. Be7 {[%clk 0:01:11]}  Rxd5 {[%clk 0:00:52]} 36. Bxf6 {[%clk 0:01:11]}  Rxd2 {[%clk 0:00:48]} 37. Be5 {[%clk 0:01:08]}  Qc2 {[%clk 0:00:43]} 38. Bf4 {[%clk 0:01:06]}  Rd3 {[%clk 0:00:36]} 39. Rc1 {[%clk 0:01:03]}  Rd1+ {[%clk 0:00:36]} 40. Rxd1 {[%clk 0:01:03]}  Qxd1+ {[%clk 0:00:37]} 41. Kh2 {[%clk 0:01:04]}  Qf3 {[%clk 0:00:37]} 42. Qe3 {[%clk 0:00:59]}  Qd1 {[%clk 0:00:37]} 43. Qd2 {[%clk 0:00:56]}  Qb3 {[%clk 0:00:36]} 44. Qd8+ {[%clk 0:00:52]}  Kh7 {[%clk 0:00:35]} 45. Qd7 {[%clk 0:00:53]}  f6 {[%clk 0:00:30]} 46. Be3 {[%clk 0:00:51]}  h5 {[%clk 0:00:24]} 47. g5 {[%clk 0:00:47]}  fxg5 {[%clk 0:00:19]} 48. Bd4 {[%clk 0:00:48]}  Qf7 {[%clk 0:00:19]} 49. Qd6 {[%clk 0:00:47]}  Qf4+ {[%clk 0:00:08]} 50. Qxf4 {[%clk 0:00:47]}  gxf4 {[%clk 0:00:08]} 51. Be5 {[%clk 0:00:48]}  f3 {[%clk 0:00:09]} 52. Kg3 {[%clk 0:00:47]}  Kg8 {[%clk 0:00:09]} 53. Kf4 {[%clk 0:00:46]}  Kf7 {[%clk 0:00:10]} 54. Bd4 {[%clk 0:00:46]}  Bh7 {[%clk 0:00:09]} 55. h4 {[%clk 0:00:45]}  Kf8 {[%clk 0:00:08]} 56. Kg5 {[%clk 0:00:44]}  Kf7 {[%clk 0:00:05]} 57. Kf4 {[%clk 0:00:44]}  Bg6 {[%clk 0:00:05]} 58. Kg5 {[%clk 0:00:45]}  Bh7 {[%clk 0:00:05]} 59. Kxh5 {[%clk 0:00:41]}  Bf5 {[%clk 0:00:04]} 60. Kg5 {[%clk 0:00:41]}  Bh7 {[%clk 0:00:03]} 61. h5 {[%clk 0:00:41]}  Bg8 {[%clk 0:00:03]} 62. Kf5 {[%clk 0:00:40]}  Bh7+ {[%clk 0:00:03]} 63. Kf4 {[%clk 0:00:40]}  Kg8 {[%clk 0:00:02]} 64. Ke5 {[%clk 0:00:38]}  Kf7 {[%clk 0:00:03]} 65. Kd6 {[%clk 0:00:37]}  Bg8 {[%clk 0:00:03]} 66. Ke5 {[%clk 0:00:35]}  Bh7 {[%clk 0:00:04]} 67. Kf4 {[%clk 0:00:36]}  Kg8 {[%clk 0:00:04]} 68. Kg5 {[%clk 0:00:36]}  Kf7 {[%clk 0:00:04]} 1/2-1/2


[Site "https://www.chess.com"]

[Event "Titled Tuesday Blitz January 25 2022"]
[White "Abarca Gonzalez, Nicolas"]
[Black "Szpar, Milosz"]
[WhiteFideId "3409422"]
[BlackFideId "1184989"]
[WhiteElo "2504"]
[BlackElo "2447"]
[Result "0-1"]
[Round "11"]
[TimeControl "180+1"]
[Date "2022.01.26"]
[WhiteClock "0:00:54"]
[BlackClock "0:00:51"]

1. e4 {[%clk 0:03:00]}  c5 {[%clk 0:02:59]} 2. Nf3 {[%clk 0:03:01]}  d6 {[%clk 0:03:00]} 3. Bc4 {[%clk 0:03:01]}  Nf6 {[%clk 0:02:59]} 4. e5 {[%clk 0:03:01]}  dxe5 {[%clk 0:02:59]} 5. Nxe5 {[%clk 0:03:02]}  e6 {[%clk 0:02:55]} 6. Qe2 {[%clk 0:03:03]}  Be7 {[%clk 0:02:54]} 7. O-O {[%clk 0:03:02]}  O-O {[%clk 0:02:54]} 8. Re1 {[%clk 0:03:03]}  a6 {[%clk 0:02:54]} 9. a4 {[%clk 0:03:02]}  Qc7 {[%clk 0:02:51]} 10. a5 {[%clk 0:03:02]}  Nc6 {[%clk 0:02:29]} 11. Nxc6 {[%clk 0:03:02]}  Qxc6 {[%clk 0:02:28]} 12. Nc3 {[%clk 0:03:03]}  Bd7 {[%clk 0:02:24]} 13. b3 {[%clk 0:03:01]}  Rad8 {[%clk 0:02:24]} 14. Bb2 {[%clk 0:02:59]}  Qc7 {[%clk 0:02:23]} 15. d3 {[%clk 0:02:58]}  Bc6 {[%clk 0:02:23]} 16. Ne4 {[%clk 0:02:58]}  Nxe4 {[%clk 0:02:15]} 17. dxe4 {[%clk 0:02:59]}  Bf6 {[%clk 0:02:14]} 18. e5 {[%clk 0:02:42]}  Bg5 {[%clk 0:02:12]} 19. Bc3 {[%clk 0:02:37]}  Rd7 {[%clk 0:02:10]} 20. Rad1 {[%clk 0:02:30]}  Rfd8 {[%clk 0:02:09]} 21. g3 {[%clk 0:02:10]}  g6 {[%clk 0:02:00]} 22. f4 {[%clk 0:02:09]}  Be7 {[%clk 0:02:00]} 23. Kf2 {[%clk 0:01:53]}  Bd5 {[%clk 0:01:59]} 24. Bxd5 {[%clk 0:01:52]}  Rxd5 {[%clk 0:02:00]} 25. Rxd5 {[%clk 0:01:51]}  Rxd5 {[%clk 0:02:01]} 26. Rd1 {[%clk 0:01:51]}  Qc6 {[%clk 0:02:00]} 27. Rxd5 {[%clk 0:01:51]}  exd5 {[%clk 0:01:57]} 28. Qf3 {[%clk 0:01:42]}  Qd7 {[%clk 0:01:41]} 29. g4 {[%clk 0:01:38]}  Bh4+ {[%clk 0:01:40]} 30. Kg2 {[%clk 0:01:36]}  d4 {[%clk 0:01:31]} 31. Bd2 {[%clk 0:01:36]}  Bd8 {[%clk 0:01:29]} 32. f5 {[%clk 0:01:33]}  Kg7 {[%clk 0:01:03]} 33. f6+ {[%clk 0:01:13]}  Kg8 {[%clk 0:01:01]} 34. Kg3 {[%clk 0:01:10]}  Bc7 {[%clk 0:00:58]} 35. Bf4 {[%clk 0:01:10]}  Bxa5 {[%clk 0:00:57]} 36. Qf1 {[%clk 0:00:57]}  Qd5 {[%clk 0:00:52]} 37. Qh3 {[%clk 0:00:54]}  Be1# {[%clk 0:00:51]} 0-1


[Site "https://www.chess.com"]

[Event "Titled Tuesday Blitz January 25 2022"]
[White "Aditya Mittal"]
[Black "Tanenbaum, Zachary"]
[WhiteFideId "35042025"]
[BlackFideId "2060850"]
[WhiteElo "2287"]
[BlackElo "2168"]
[Result "1-0"]
[Round "11"]
[TimeControl "180+1"]
[Date "2022.01.26"]
[WhiteClock "0:00:18"]
[BlackClock "0:00:02"]

1. d4 {[%clk 0:03:00]}  d5 {[%clk 0:03:00]} 2. c4 {[%clk 0:03:01]}  dxc4 {[%clk 0:03:00]} 3. Nf3 {[%clk 0:02:59]}  a6 {[%clk 0:03:00]} 4. e4 {[%clk 0:02:58]}  b5 {[%clk 0:03:00]} 5. a4 {[%clk 0:02:58]}  Bb7 {[%clk 0:03:00]} 6. axb5 {[%clk 0:02:51]}  axb5 {[%clk 0:03:01]} 7. Rxa8 {[%clk 0:02:51]}  Bxa8 {[%clk 0:03:02]} 8. Nc3 {[%clk 0:02:52]}  b4 {[%clk 0:03:00]} 9. Qa4+ {[%clk 0:02:52]}  Nc6 {[%clk 0:02:51]} 10. Ne5 {[%clk 0:02:36]}  bxc3 {[%clk 0:02:39]} 11. Bxc4 {[%clk 0:02:37]}  e6 {[%clk 0:02:23]} 12. Nxc6 {[%clk 0:02:08]}  Bxc6 {[%clk 0:02:23]} 13. Qxc6+ {[%clk 0:02:09]}  Qd7 {[%clk 0:02:17]} 14. Qa8+ {[%clk 0:02:09]}  Ke7 {[%clk 0:02:02]} 15. bxc3 {[%clk 0:02:06]}  Nh6 {[%clk 0:00:54]} 16. Ba3+ {[%clk 0:01:58]}  Kf6 {[%clk 0:00:54]} 17. e5+ {[%clk 0:01:51]}  Kg6 {[%clk 0:00:47]} 18. Bxf8 {[%clk 0:01:51]}  f5 {[%clk 0:00:31]} 19. exf6 {[%clk 0:01:45]}  gxf6 {[%clk 0:00:29]} 20. Qa3 {[%clk 0:01:20]}  Nf5 {[%clk 0:00:23]} 21. Bd3 {[%clk 0:01:18]}  Kf7 {[%clk 0:00:20]} 22. Bc5 {[%clk 0:01:17]}  Nh4 {[%clk 0:00:17]} 23. Qc1 {[%clk 0:00:37]}  Nxg2+ {[%clk 0:00:13]} 24. Kf1 {[%clk 0:00:37]}  Qd5 {[%clk 0:00:10]} 25. Rg1 {[%clk 0:00:30]}  Rg8 {[%clk 0:00:09]} 26. Qh6 {[%clk 0:00:28]}  Qf3 {[%clk 0:00:06]} 27. Qxh7+ {[%clk 0:00:25]}  Ke8 {[%clk 0:00:02]} 28. Qxg8+ {[%clk 0:00:22]}  Kd7 {[%clk 0:00:03]} 29. Bb5+ {[%clk 0:00:22]}  c6 {[%clk 0:00:03]} 30. Bxc6+ {[%clk 0:00:19]}  Kc7 {[%clk 0:00:02]} 31. Bxf3 {[%clk 0:00:18]} 1-0


[Site "https://www.chess.com"]